Cogmind - Beta 13 @@@ ROGUE MODE // 2024.06.11 @ 17:43:17 Player: pakman Result: Destroyed by Z1-LYE(R) with Subdweller Machine Gun Performance ------------- Evolutions (0) 0 Regions Visited (2) 400 Robots Destroyed (30) 150 Value Destroyed (711) 711 Prototype IDs (0) 0 Alien Tech Used (0) 0 Bonus (0) 0 TOTAL SCORE: 1261 Bonus ------- None Cogmind --------- Core Integrity 0/250 Matter 262/300 Energy 125/125 System Corruption 0% Temperature Cool (0) Movement Walking (190) Ox1 Location -10/Subcaves Parts ------- > --- POWER (1) -------- Light Ion Engine > --- PROPULSION (2) --- Aluminum Leg Aluminum Leg > --- UTILITY (2) ------ Large Storage Unit Makeshift Thermal Plating > --- WEAPON (2) ------- Battle Cannon Battle Cannon > --- INVENTORY (15) --- Ion Engine Improved Heat Sink Sensor Array Signal Interpreter Improved Terrain Scanner Utility Shielding Riot Gun Small Laser Subdweller Laser Light Cannon Subdweller Shrapnel Launcher Welding Torch Peak State ------------ > --- POWER ------------ Light Ion Engine > --- PROPULSION ------- Aluminum Leg Aluminum Leg > --- UTILITY ---------- Large Storage Unit Makeshift Thermal Plating > --- WEAPON ----------- Battle Cannon Battle Cannon > --- INVENTORY -------- Aluminum Leg Improved Heat Sink Sensor Array Signal Interpreter Improved Terrain Scanner Utility Shielding Riot Gun Small Laser Subdweller Laser Light Cannon Subdweller Shrapnel Launcher Welding Torch [Rating: 14] Favorites ----------- Power Light Ion Engine Engine Light Ion Engine Propulsion Aluminum Leg Leg Aluminum Leg Utility Large Storage Unit Device Seismic Detector Storage Large Storage Unit Protection Makeshift Thermal Plating Weapon Small Laser Energy Gun Small Laser Ballistic Cannon Light Cannon Special Weapon Welding Torch Special Melee Weapon Datajack Build | -11 -10 -10 ------- Run | Yrd Mat Sub Slots Evolved . | . . . Power . | . . . Propulsion . | . . . Utility . | . . . Weapon . | . . . Parts Attached 22 | 7 2 13 Power 3 | 1 . 2 Engine 3 | 1 . 2 Core . | . . . Reactor . | . . . Propulsion 5 | 2 1 2 Treads . | . . . Leg 5 | 2 1 2 Wheel . | . . . Hover . | . . . Flight . | . . . Utility 4 | 2 1 1 Device 1 | 1 . . Storage 2 | 1 1 . Processor . | . . . Hackware . | . . . Protection 1 | . . 1 Artifact . | . . . Weapon 10 | 2 . 8 Energy Gun 4 | 2 . 2 Energy Cannon . | . . . Ballistic Gun . | . . . Ballistic Cannon 3 | . . 3 Launcher . | . . . Special Weapon 2 | . . 2 Impact Weapon . | . . . Slashing Weapon . | . . . Piercing Weapon . | . . . Special Melee Weapon 1 | . . 1 Unidentified Prototypes . | . . . Parts Lost 9 | . 1 8 Power 2 | . . 2 Propulsion 3 | . 1 2 Utility 1 | . . 1 Weapon 3 | . . 3 Highest Loss Streak 3 | . 1 3 To Critical Strikes 1 | . . 1 Average Slot Usage (%) 98 | . 99 97 Engine 13 | . 14 13 Leg 27 | . 27 27 Device 8 | . 14 3 Storage 14 | . 14 14 Protection 5 | . . 10 Energy Gun 16 | . 28 7 Ballistic Cannon 8 | . . 14 Special Weapon 2 | . . 3 Naked Turns . | . . . Heaviest Build 33 | 13 28 33 Greatest Support 20 | 20 20 20 Greatest Overweight (x) 3 | 3 2 3 Average Overweight (x) . | . . 1 Largest Inventory Capacity 15 | 8 15 15 Average Capacity 14 | 7 14 15 Most Carried 13 | 3 13 13 Average Carried 9 | 1 8 10 Final Capacity 15 | 8 15 15 Final Carried 13 | 3 13 12 Class Distribution -------------------- 100% | Mutant Dominant Class ---------------- Mutant | -10/Materials Mutant | -10/Subcaves Resources | -11 -10 -10 ----------- Run | Yrd Mat Sub Matter Collected 523 | 270 20 233 Remotely . | . . . Salvage Created 856 | 68 485 303 Parts 56 | 4 29 23 Haulers Intercepted 1 | . 1 . Recyclers Shooed 1 | . 1 . Parts Field Recycled . | . . . Retrieved Matter . | . . . Parts Self-Destructed 9 | . . 9 Prevented . | . . . Kills | -11 -10 -10 ------- Run | Yrd Mat Sub Combat Hostiles Destroyed 21 | . 9 12 Guns 12 | . 9 3 Cannons 9 | . . 9 Classes Destroyed 9 | 1 6 2 Worker 2 | . 2 . Tunneler 4 | 3 1 . Hauler 1 | . 1 . Operator 1 | . 1 . Watcher 1 | . 1 . Swarmer 6 | . 2 4 Grunt 9 | . 7 2 Sentry 1 | . . 1 Subdweller 5 | . . 5 Best Kill Streak 4 | 3 4 4 Combat Bots Only 4 | . 2 4 Max Kills in Single Turn 2 | 2 2 1 Gunslinging . | . . . Exploded . | . . . Melee . | . . . Uniques/NPCs Destroyed . | . . . Combat | -11 -10 -10 -------- Run | Yrd Mat Sub Hostile Shots Fired 121 | . 54 67 Missed 37 | . 19 18 Damage Taken 1153 | . 448 705 Core 265 | . 95 170 Absorbed by Shields . | . . . Ignored by Resistances 25 | . . 25 Core Remaining (%) 100 | 100 . . Volleys Fired 98 | 3 58 37 Largest 2 | 2 2 2 Hottest 80 | 80 80 80 Shots Fired 186 | 6 116 64 Gun 138 | 6 116 16 Cannon 38 | . . 38 Launcher . | . . . Special 10 | . . 10 Kinetic 38 | . . 38 Thermal 148 | 6 116 26 Explosive . | . . . Electromagnetic . | . . . Robot Hit Streak 13 | 2 11 13 Robot Miss Streak 5 | 2 5 2 Penetration Max . | . . . Secondary Targets 1 | . 1 . Max Gunslinging Chain 1 | . 1 . Shots Hit Robots 101 | 3 64 34 Core Hits 51 | 3 31 17 Critical Kills . | . . . Critical Parts Destroyed . | . . . Critical Strikes 1 | . . 1 Blast 1 | . . 1 Melee Attacks . | . . . Impact . | . . . Slashing . | . . . Piercing . | . . . Sneak Attacks . | . . . Combat Hostiles . | . . . Follow-up Attacks . | . . . Damage Inflicted 1420 | 66 815 539 Guns 926 | 66 730 130 Cannons 409 | . . 409 Explosions 85 | . 85 . Melee . | . . . Ramming . | . . . Kinetic 409 | . . 409 Thermal 926 | 66 730 130 Explosive . | . . . Electromagnetic 85 | . 85 . Impact . | . . . Slashing . | . . . Piercing . | . . . Highest Corruption . | . . . Average Corruption . | . . . Corruption Purged . | . . . Corruption Blocked . | . . . Overload Shots . | . . . Overflow Damage 2 | . . 2 Projectiles 2 | . . 2 Explosions . | . . . Melee . | . . . Knockbacks 4 | . . 4 Impact . | . . . Kinetic 4 | . . 4 Secondary . | . . . Self-Inflicted Damage 42 | . 42 . Shots 1 | . 1 . Rammed . | . . . Targets Rammed . | . . . Kicked . | . . . Crushed . | . . . Highest Temperature 225 | 36 225 3 Average Temperature 63 | 22 66 3 Received Heat Transfer 369 | . 207 162 Siege Activations . | . . . Robots Corrupted . | . . . Combat Hostiles . | . . . Parts Fried . | . . . Impact Corruptions . | . . . Robots Melted . | . . . Combat Hostiles . | . . . Parts Melted 1 | . 1 . Heat Transferred 2100 | 150 1650 300 Parts Sabotaged . | . . . Parts Stolen . | . . . Parts Stripped . | . . . Power Chain Reactions . | . . . Alert | -11 -10 -10 ------- Run | Yrd Mat Sub Peak Influence 133 | 15 133 . Initial 9 | . 9 . Average 36 | 4 38 . Maximum Alert Level . | . . . Low Security (%) 100 | 100 100 . Level 1 . | . . . Level 2 . | . . . Level 3 . | . . . Level 4 . | . . . Level 5 . | . . . High Security . | . . . Max Security . | . . . Squads Dispatched 1 | . 1 . Investigation . | . . . Extermination . | . . . Reinforcement 1 | . 1 . Assault . | . . . Garrison . | . . . Intercept . | . . . Searches Triggered . | . . . Construction Impeded . | . . . Haulers Reinforced . | . . . Active Scanning Responses . | . . . Cargo Convoy Interrupts . | . . . Stealth | -11 -10 -10 --------- Run | Yrd Mat Sub Distress Signals 1 | . 1 . Communications Jammed . | . . . Distress Signals . | . . . Times Spotted 38 | . 23 15 Peak Tracking Total 5 | . 3 5 Tactical Retreats 2 | . 1 1 Traps | -11 -10 -10 ------- Run | Yrd Mat Sub Traps Triggered 2 | . . 2 Indirectly . | . . . Trap Hack Attempts 9 | . . 9 Triggered . | . . . Disarmed . | . . . Reprogrammed 6 | . 4 2 Reused . | . . . Traps Extracted . | . . . Installed . | . . . Triggered . | . . . Machines | -11 -10 -10 ---------- Run | Yrd Mat Sub Machines Disabled 1 | . 1 . Max in Single Turn 1 | . 1 . Machines Repaired . | . . . Machines Dismantled . | . . . Machines Sabotaged . | . . . Overloaded Fab Kills . | . . . Hacking | -11 -10 -10 --------- Run | Yrd Mat Sub Machines Accessed 6 | . 5 1 Terminals 4 | . 4 . Fabricators . | . . . Repair Stations . | . . . Recycling Units 1 | . 1 . Scanalyzers . | . . . Garrison Access . | . . . Total Hacks 14 | . 13 1 Successful 9 | . 8 1 Failed 5 | . 5 . Catastrophic 1 | . 1 . Database Lockouts . | . . . Manual 6 | . 6 . Terminals 12 | . 12 . Fabricators . | . . . Repair Stations . | . . . Recycling Units 1 | . 1 . Scanalyzers . | . . . Garrison Access . | . . . Terminal Hacks 5 | . 4 1 Record 1 | . . 1 Branch Access Points 1 | . 1 . Locate Traps 2 | . 2 . Reprogram Traps 1 | . 1 . Fabricator Hacks . | . . . Repair Station Hacks . | . . . Recycling Unit Hacks 1 | . 1 . Report Inventory 1 | . 1 . Scanalyzer . | . . . Garrison Access Hacks . | . . . Unauthorized Hacks 3 | . 3 . Terminals 3 | . 3 . Botnet 3 | . 3 . Fabricators . | . . . Repair Stations . | . . . Recycling Units . | . . . Scanalyzers . | . . . Garrison Access . | . . . Data Cores Recovered . | . . . Used . | . . . Hacking Detections 4 | . 4 . Full Trace Events . | . . . Feedback Events . | . . . Feedback Blocked . | . . . Robot Schematics Acquired . | . . . Robots Built . | . . . Authchips . | . . . Time . | . . . Total Robot Build Rating . | . . . Part Schematics Acquired . | . . . Parts Built . | . . . Authchips . | . . . Time . | . . . Total Part Build Rating . | . . . Parts Repaired . | . . . Time . | . . . Parts Recycled . | . . . Recycled Matter . | . . . Retrieved Matter . | . . . Retrieved Components . | . . . Parts Scanalyzed . | . . . Part Schematics Acquired . | . . . Parts Damaged . | . . . Bothacking | -11 -10 -10 ------------ Run | Yrd Mat Sub Used RIF Installer . | . . . Robots Hacked . | . . . Non-combat . | . . . Combat . | . . . Robot Hacks Applied . | . . . Relay Couplers Released . | . . . Fabnet Peak Effective % . | . . . Robots Rewired . | . . . Allies Hacked . | . . . Hacks Repelled . | . . . Allies | -11 -10 -10 -------- Run | Yrd Mat Sub Total Allies . | . . . Largest Group . | . . . Highest-Rated Group . | . . . Highest-Rated Ally . | . . . Total Orders . | . . . Ally Attacks . | . . . Total Damage . | . . . Kills . | . . . Allies Corrupted . | . . . Allies Melted . | . . . Intel | -11 -10 -10 ------- Run | Yrd Mat Sub Robot Analysis Total . | . . . Derelict Logs Recovered 1 | . . 1 Drone Launches . | . . . Drone Recoveries . | . . . Exploration | -11 -10 -10 ------------- Run | Yrd Mat Sub Turns Passed 3481 | 79 1474 1928 Spaces Moved 1592 | 48 610 934 Core 12 | 12 . . Treads . | . . . Legs 1580 | 36 610 934 Wheels . | . . . Hover . | . . . Flight . | . . . Fastest Speed 50 | 50 120 190 Average Speed 185 | 120 183 190 Slowest Speed 330 | 200 260 330 Overloaded Moves . | . . . Propulsion Burnouts . | . . . Robots Hopped . | . . . Cave-ins Triggered . | . . . Exploration Rate (%) 37 | 4 55 53 Regions Visited 2 Branch Regions 1 Pre-discovered Areas . | . . . Known Exits Taken . | . . . Unknown Exits Taken 2 | 1 1 . Scrap Searched 6 | . . 6 Spaces Dug . | . . . Terrain Destroyed 2 | . . 2 Melee . | . . . Projectile 2 | . . 2 AOE . | . . . Terrain Rammed . | . . . Walls Destroyed . | . . . Machines Disabled . | . . . Actions | -11 -10 -10 --------- Run | Yrd Mat Sub Total 1927 | 60 853 1014 Wait 184 | . 170 14 Move 1590 | 47 609 934 Hop . | . . . Pick Up 22 | 3 12 7 Fast Attach 7 | 7 . . Attach 9 | . 1 8 Detach . | . . . Swap 6 | . 1 5 Drop 2 | . 2 . Fire 98 | 3 58 37 Melee . | . . . Ram . | . . . Kick . | . . . Crush . | . . . Escape Stasis . | . . . Rewire . | . . . Trap 9 | . . 9 Miscellaneous . | . . . Route ------- -11/Scrapyard -10/Materials (discovered 2 exits: *Min / *Sub) -10/Subcaves (discovered 2 exits: [*Mat x2]) History --------- Turn | Location | Event 21 | -11/Scrapyard | Discovered new exit (range 15) 80 | -11/Scrapyard | Entered Materials 311 | -10/Materials | Build established: Mutant 814 | -10/Materials | Identified exit to Mines 1537 | -10/Materials | Discovered new exit (range 9) 1554 | -10/Materials | Entered Subcaves 1576 | -10/Subcaves | Ambushed by Subdwellers from Twisted Machinery 1641 | -10/Subcaves | Lost 3 parts (1n2w) 1777 | -10/Subcaves | Discovered new exit (range 15) 1809 | -10/Subcaves | Shifting Twisted Machinery released Piercing Trap 2238 | -10/Subcaves | A swath of the cavern ceiling suddenly collapsed 2248 | -10/Subcaves | Core integrity fell below 50% 2552 | -10/Subcaves | Disturbed a concealed Subdweller 2784 | -10/Subcaves | Visited Clippyterm 2922 | -10/Subcaves | Learned Materials trap positions 3089 | -10/Subcaves | Core integrity fell below 20% 3290 | -10/Subcaves | Discovered new exit (range 7) 3482 | -10/Subcaves | Destroyed by Z1-LYE(R) with Subdweller Machine Gun Last Messages --------------- 03075_ G-34 Mercenary destroyed. 03078_ G-34 Mercenary knocked back. 03079_ Aluminum Leg fries itself beyond repair. 03081_ G-34 Mercenary Ion Engine blasted off. 03082_ Sml. Laser fries itself beyond repair. 03084_ Destroyed Aluminum Leg. 03084_ G-34 Mercenary knocked back. 03085_ Aluminum Leg destroyed. 03090_ G-34 Mercenary destroyed. 03099_ Y-45 Defender destroyed. 03105_ Acquired 50 matter. 03108_ Heat Sink fries itself beyond repair. 03109_ Acquired 35 matter. 03111_ Acquired 2 matter. 03112_ Lgt. Treads fries itself beyond repair. 03115_ Acquired 13 matter. 03116_ Acquired 8 matter. 03118_ Acquired 3 matter. 03122_ Acquired Ion Engine. 03290_ EXIT=FOUND Map ----- +----------------------------------------------------+ | ?????????????????????????????????????????????????? | | ?????????????????????????????????????????????????? | | ?????????????????????????????????????????????????? | | ?????????????????????????????????????????????????? | | ?????????????????????????????????????????????????? | | ?????????????????????????????????????????????????? | | ?????????????????????????????????????????????????? | | ?????????????????????????????????????????????????? | | ?????????????????????????????????????????????????? | | ?????????????????????????????????????????????????? | | ?????????????????????????????????????????????????? | | ???????????????????????????????? ##????????####??? | | ?????????????????? ???????????? #??????# ##?? | | ?????????????????? ????????? ?????## #?? | | ?????????????????? ????????# ?????# ??? | | ??????????????????? ??????# ? ###### ??? | | ???????????????????# ????? ??# ## ??? | | ??????????????? ### ????? ??## #??? | | ??????????????? # # ????# #??# #??? | | ???????????????? #??# #???# ##?? | | ????????????????? ## #???# ##? | | ?????????????????## ?????# #? ## | | ???????????????### # ???????# ### # | | ??????????????# #" #??????### ## | | ????????????? "" #??###?## | | ????????????????? "R"R @#?## ### | | ?????????????????"##"; ### ## ### | | ???????????????????##### ##?## | | ??????????????????????## ##???## | | ??????????????????????# ##????##### | | ??????????????????????### ##????## ### | | ????????????????????????## #?????# ### | | ?????????????????????????## ## #????# ## | | ??????????????????????????# #### ####????### | | ??????????????????????????###??###?????????# | | ???????????????????????????????????????????# | | ???????????????????????????????????????????## | | ????????????????????????????????????????????##### | | ????????????????????????????????????????????????## | | ?????????????????????????????????????????????????? | | ?????????????????????????????????????????????????? | | ?????????????????????????????????????????????????? | | ?????????????????????????????????????????????????? | | ?????????????????????????????????????????????????? | | ?????????????????????????????????????????????????? | | ?????????????????????????????????????????????????? | | ?????????????????????????????????????????????????? | | ?????????????????????????????????????????????????? | | ?????????????????????????????????????????????????? | | ?????????????????????????????????????????????????? | +----------------------------------------------------+ Best States ------------- Heat Dissipation 25 Energy Generation 10 Energy Capacity 250 Matter Stores 300 Matter Capacity 300 Sight Range 16 Terrain Scan Density 10 Armor Coverage 100 Resistance: TH 10 Evasion (%) 55 Item Schematics ----------------- None Robot Schematics ------------------ None Fabricated ------------ Nothing Alien Tech Used ----------------- None Achievements -------------- Hehehe Challenges ------------ None Game ------ Seed AuthchipFieldMatter Manual? 0 Play Time 00:20:39 Cumulative 44.1 hours Start 2024.06.11 @ 17:23:29 End 2024.06.11 @ 17:43:17 Sessions 1 Manual Loads 0 Difficulty Rogue Special Mode None Game No. 51 Rogue 51 Adventurer 0 Explorer 0 Win Type - Total 0 Types 0/0/0/0/0/0/0/0/0 Lore% 29 Gallery% 30 Achievement% 26 Wizard Run 0 Options --------- Layout 0 ASCII 0 Keyboard 1 Movement Numpad Keybinds 0 Fullscreen 2 Font 18/SmallcapsGlow Map View 76x50 Zoom Use 0% Tactical HUD 1 Map Filters NONE Filters NONE Steam 1 RUN: e6108506-1c20-4511-9220-3d8d8db62bf1